[Event "*** SCC Grand Prix: Titled Tuesday Blitz"]
[Site "Chess.com"]
[Date "2020.07.14"]
[Round "2"]
[White "mortngabriel"]
[Black "Mischuk_D"]
[Result "0-1"]
[WhiteElo "2374"]
[BlackElo "2638"]
[TimeControl "180+1"]
[EndTime "10:19:03 PDT"]
[Termination "Mischuk_D won on time"]

1. Nf3 {[%clk 0:03:00.5]} 1... d5 {[%clk 0:02:59.3]} 2. e3 {[%clk 0:03:00.4]}
2... Nf6 {[%clk 0:02:57.1]} 3. c4 {[%clk 0:03:00.7]} 3... e6 {[%clk 0:02:55.2]}
4. Nc3 {[%clk 0:03:00.3]} 4... c5 {[%clk 0:02:55.2]} 5. cxd5 {[%clk 0:03:00.1]}
5... exd5 {[%clk 0:02:56.1]} 6. d4 {[%clk 0:03:00.6]} 6... Nc6 {[%clk
0:02:56.4]} 7. Bb5 {[%clk 0:03:00.3]} 7... cxd4 {[%clk 0:02:56.4]} 8. Nxd4
{[%clk 0:02:59.5]} 8... Bd7 {[%clk 0:02:56.6]} 9. O-O {[%clk 0:02:59.6]} 9...
Bd6 {[%clk 0:02:56.7]} 10. Nf3 {[%clk 0:02:47.2]} 10... Be6 {[%clk 0:02:49]} 11.
b3 {[%clk 0:02:40]} 11... O-O {[%clk 0:02:48]} 12. Bb2 {[%clk 0:02:40.3]} 12...
Rc8 {[%clk 0:02:46.8]} 13. Rc1 {[%clk 0:02:31.9]} 13... a6 {[%clk 0:02:32.6]}
14. Be2 {[%clk 0:02:25.2]} 14... Qe7 {[%clk 0:02:32.7]} 15. Na4 {[%clk
0:02:16.6]} 15... Ne4 {[%clk 0:02:32.1]} 16. Nd4 {[%clk 0:01:58.6]} 16... Qh4
{[%clk 0:01:58.6]} 17. g3 {[%clk 0:01:52.7]} 17... Qh6 {[%clk 0:01:52.4]} 18.
Nxc6 {[%clk 0:01:44.8]} 18... Rxc6 {[%clk 0:01:52.2]} 19. Rxc6 {[%clk
0:01:44.5]} 19... bxc6 {[%clk 0:01:53.1]} 20. Nc3 {[%clk 0:01:30.7]} 20... Bh3
{[%clk 0:01:37]} 21. Re1 {[%clk 0:01:18.7]} 21... Be5 {[%clk 0:01:36.4]} 22.
Nxe4 {[%clk 0:01:06.7]} 22... Bxb2 {[%clk 0:01:35.3]} 23. Qc2 {[%clk 0:01:07.6]}
23... Be5 {[%clk 0:01:21.1]} 24. Nc5 {[%clk 0:01:06.5]} 24... a5 {[%clk
0:01:15.3]} 25. Nd3 {[%clk 0:01:06.3]} 25... Bc7 {[%clk 0:01:05.3]} 26. Rc1
{[%clk 0:01:06.3]} 26... Bd7 {[%clk 0:01:04.6]} 27. Nc5 {[%clk 0:01:05.5]} 27...
Be8 {[%clk 0:01:04]} 28. a4 {[%clk 0:00:55.1]} 28... Bb6 {[%clk 0:01:03.6]} 29.
Nd3 {[%clk 0:00:54.2]} 29... Qf6 {[%clk 0:01:02.6]} 30. b4 {[%clk 0:00:47.2]}
30... g6 {[%clk 0:00:41.2]} 31. bxa5 {[%clk 0:00:40]} 31... Bxa5 {[%clk
0:00:42.1]} 32. Qc5 {[%clk 0:00:40.5]} 32... Qd8 {[%clk 0:00:38.9]} 33. Nb4
{[%clk 0:00:38.6]} 33... Bb6 {[%clk 0:00:33.6]} 34. Nxc6 {[%clk 0:00:32.5]}
34... Bxc6 {[%clk 0:00:32.8]} 35. Qxc6 {[%clk 0:00:32.5]} 35... d4 {[%clk
0:00:33.7]} 36. exd4 {[%clk 0:00:23.2]} 36... Qxd4 {[%clk 0:00:33.4]} 37. Qf3
{[%clk 0:00:22.8]} 37... Qxa4 {[%clk 0:00:30.5]} 38. Bc4 {[%clk 0:00:18.5]}
38... Qd7 {[%clk 0:00:29.9]} 39. Rd1 {[%clk 0:00:17.5]} 39... Qe7 {[%clk
0:00:29.8]} 40. Kg2 {[%clk 0:00:14.2]} 40... Rc8 {[%clk 0:00:29.4]} 41. Qd5
{[%clk 0:00:08.6]} 41... Rc5 {[%clk 0:00:27]} 42. Qd3 {[%clk 0:00:03.4]} 42...
Qf6 {[%clk 0:00:23.2]} 43. f4 {[%clk 0:00:03.3]} 43... Qc6+ {[%clk 0:00:17.7]}
44. Bd5 {[%clk 0:00:03.7]} 44... Qc7 {[%clk 0:00:16.8]} 45. Rd2 {[%clk
0:00:04.2]} 45... Rc3 {[%clk 0:00:16.8]} 46. Qe4 {[%clk 0:00:04.4]} 46... Re3
{[%clk 0:00:16.2]} 47. Qc4 {[%clk 0:00:04.6]} 47... Qe7 {[%clk 0:00:15.4]} 48.
h4 {[%clk 0:00:04.1]} 48... h5 {[%clk 0:00:14.9]} 49. Bf3 {[%clk 0:00:04.4]}
49... Qa3 {[%clk 0:00:14.6]} 50. Re2 {[%clk 0:00:04.7]} 50... Rxf3 {[%clk
0:00:14.4]} 51. Qc8+ {[%clk 0:00:03.7]} 51... Kg7 {[%clk 0:00:14.1]} 52. Qb7
{[%clk 0:00:02.2]} 52... Rxg3+ {[%clk 0:00:14.3]} 53. Kf1 {[%clk 0:00:02.1]}
53... Qf3+ {[%clk 0:00:13.2]} 54. Ke1 {[%clk 0:00:02.6]} 54... Qxb7 {[%clk
0:00:12.8]} 55. Kd2 {[%clk 0:00:03.5]} 55... Qd5+ {[%clk 0:00:12.7]} 0-1

[Event "*** SCC Grand Prix: Titled Tuesday Blitz"]
[Site "Chess.com"]
[Date "2020.07.14"]
[Round "2"]
[White "Miss_JJ20"]
[Black "Barmen_EV"]
[Result "1-0"]
[WhiteElo "2261"]
[BlackElo "2430"]
[TimeControl "180+1"]
[EndTime "10:19:03 PDT"]
[Termination "Miss_JJ20 won by checkmate"]

1. d4 {[%clk 0:03:00.9]} 1... d5 {[%clk 0:02:59.8]} 2. c4 {[%clk 0:02:59.7]}
2... e6 {[%clk 0:02:59.8]} 3. Nf3 {[%clk 0:03:00]} 3... Nf6 {[%clk 0:02:59.7]}
4. g3 {[%clk 0:03:00.6]} 4... dxc4 {[%clk 0:02:59.5]} 5. Bg2 {[%clk 0:03:00.8]}
5... Nc6 {[%clk 0:03:00.4]} 6. Qa4 {[%clk 0:02:56.4]} 6... Bb4+ {[%clk 0:03:00]}
7. Bd2 {[%clk 0:02:45]} 7... Nd5 {[%clk 0:03:00.9]} 8. Bxb4 {[%clk 0:02:39.3]}
8... Nxb4 {[%clk 0:03:01.8]} 9. Ne5 {[%clk 0:02:39.6]} 9... O-O {[%clk 0:02:52]}
10. Nxc6 {[%clk 0:02:35.5]} 10... Nxc6 {[%clk 0:02:52.9]} 11. Bxc6 {[%clk
0:02:34.6]} 11... bxc6 {[%clk 0:02:53.8]} 12. Qxc4 {[%clk 0:02:35.2]} 12... a5
{[%clk 0:02:49.3]} 13. Nc3 {[%clk 0:02:34.8]} 13... Ba6 {[%clk 0:02:49.3]} 14.
Qc5 {[%clk 0:02:29.5]} 14... Rb8 {[%clk 0:02:45.5]} 15. b3 {[%clk 0:02:25.8]}
15... Rb4 {[%clk 0:02:45.6]} 16. Rd1 {[%clk 0:02:04.8]} 16... Bb5 {[%clk
0:02:10.8]} 17. O-O {[%clk 0:01:48.5]} 17... Qd6 {[%clk 0:02:09.3]} 18. Rfe1
{[%clk 0:01:26.8]} 18... a4 {[%clk 0:01:55.3]} 19. Ne4 {[%clk 0:01:20]} 19...
Qxc5 {[%clk 0:01:49.3]} 20. Nxc5 {[%clk 0:01:20]} 20... axb3 {[%clk 0:01:50.2]}
21. axb3 {[%clk 0:01:15.7]} 21... Rd8 {[%clk 0:01:49.5]} 22. e3 {[%clk
0:01:07.8]} 22... h6 {[%clk 0:01:48.3]} 23. f4 {[%clk 0:01:07.6]} 23... g5
{[%clk 0:01:33.8]} 24. Kf2 {[%clk 0:01:05.4]} 24... Kf8 {[%clk 0:01:27.2]} 25.
Ra1 {[%clk 0:01:02.8]} 25... Ke7 {[%clk 0:01:27]} 26. Ra7 {[%clk 0:01:02.5]}
26... Rc8 {[%clk 0:01:25.7]} 27. Rc1 {[%clk 0:00:58.3]} 27... f6 {[%clk
0:01:24.9]} 28. Rc3 {[%clk 0:00:52.7]} 28... h5 {[%clk 0:01:20.5]} 29. h4 {[%clk
0:00:50.9]} 29... gxh4 {[%clk 0:01:17.6]} 30. gxh4 {[%clk 0:00:51]} 30... e5
{[%clk 0:01:18.5]} 31. dxe5 {[%clk 0:00:35.8]} 31... fxe5 {[%clk 0:01:19.4]} 32.
Kf3 {[%clk 0:00:36.2]} 32... exf4 {[%clk 0:01:12.2]} 33. exf4 {[%clk 0:00:36.1]}
33... Rf8 {[%clk 0:01:13.1]} 34. Rxc7+ {[%clk 0:00:29.6]} 34... Kd8 {[%clk
0:01:13.1]} 35. Ne6+ {[%clk 0:00:29.3]} 35... Ke8 {[%clk 0:01:13.1]} 36. Nxf8
{[%clk 0:00:26.3]} 36... Kxf8 {[%clk 0:01:14]} 37. Re3 {[%clk 0:00:17.1]} 37...
Bf1 {[%clk 0:00:52.5]} 38. Rxc6 {[%clk 0:00:12.6]} 38... Bh3 {[%clk 0:00:39.8]}
39. Rc5 {[%clk 0:00:12.5]} 39... Bg4+ {[%clk 0:00:37.3]} 40. Kg3 {[%clk
0:00:12.9]} 40... Kf7 {[%clk 0:00:38.2]} 41. Rc7+ {[%clk 0:00:12.2]} 41... Kf6
{[%clk 0:00:38]} 42. Rec3 {[%clk 0:00:12.3]} 42... Rd4 {[%clk 0:00:32.5]} 43.
R7c4 {[%clk 0:00:11.9]} 43... Kf5 {[%clk 0:00:33.4]} 44. Rxd4 {[%clk 0:00:11.9]}
44... Be2 {[%clk 0:00:33.4]} 45. Rc5+ {[%clk 0:00:11.8]} 45... Ke6 {[%clk
0:00:33.4]} 46. Re4+ {[%clk 0:00:11.9]} 46... Kd6 {[%clk 0:00:32.5]} 47. Rxe2
{[%clk 0:00:12.5]} 47... Kxc5 {[%clk 0:00:33.4]} 48. Re5+ {[%clk 0:00:13.2]}
48... Kb4 {[%clk 0:00:28.5]} 49. Rxh5 {[%clk 0:00:14.1]} 49... Kxb3 {[%clk
0:00:29.4]} 50. Re5 {[%clk 0:00:14.5]} 50... Kc4 {[%clk 0:00:30.3]} 51. h5
{[%clk 0:00:14.9]} 51... Kd4 {[%clk 0:00:31.2]} 52. h6 {[%clk 0:00:15.4]} 52...
Kd3 {[%clk 0:00:32.1]} 53. h7 {[%clk 0:00:15.9]} 53... Kd4 {[%clk 0:00:33]} 54.
h8=Q {[%clk 0:00:16.3]} 54... Kd3 {[%clk 0:00:33.9]} 55. Qd8+ {[%clk 0:00:16.6]}
55... Kc4 {[%clk 0:00:34.8]} 56. Re7 {[%clk 0:00:16.9]} 56... Kb5 {[%clk
0:00:34]} 57. Rc7 {[%clk 0:00:16.6]} 57... Ka6 {[%clk 0:00:34.9]} 58. Qb8 {[%clk
0:00:14.8]} 58... Ka5 {[%clk 0:00:01.1]} 59. Ra7# {[%clk 0:00:15.7]} 1-0

[Event "*** SCC Grand Prix: Titled Tuesday Blitz"]
[Site "Chess.com"]
[Date "2020.07.14"]
[Round "2"]
[White "Klavdia_Nik"]
[Black "Omk124"]
[Result "0-1"]
[WhiteElo "2057"]
[BlackElo "2368"]
[TimeControl "180+1"]
[EndTime "10:19:04 PDT"]
[Termination "Omk124 won on time"]

1. Nf3 {[%clk 0:03:00.9]} 1... Nf6 {[%clk 0:02:59.8]} 2. c4 {[%clk 0:03:01.4]}
2... g6 {[%clk 0:02:59.6]} 3. b3 {[%clk 0:03:01.8]} 3... Bg7 {[%clk 0:02:59.9]}
4. Bb2 {[%clk 0:03:02.4]} 4... O-O {[%clk 0:03:00.2]} 5. g3 {[%clk 0:03:02.8]}
5... c5 {[%clk 0:02:59.8]} 6. Bg2 {[%clk 0:03:02.5]} 6... d5 {[%clk 0:02:59.6]}
7. O-O {[%clk 0:03:02.1]} 7... d4 {[%clk 0:02:59.4]} 8. b4 {[%clk 0:03:02]} 8...
Nc6 {[%clk 0:02:51.1]} 9. bxc5 {[%clk 0:02:59.1]} 9... e5 {[%clk 0:02:51.2]} 10.
d3 {[%clk 0:02:59]} 10... Nd7 {[%clk 0:02:46.3]} 11. Ba3 {[%clk 0:02:49.6]}
11... Re8 {[%clk 0:02:43.6]} 12. Nfd2 {[%clk 0:02:41.7]} 12... Qa5 {[%clk
0:02:32.6]} 13. Nb3 {[%clk 0:02:33.9]} 13... Qc7 {[%clk 0:02:31.4]} 14. N1d2
{[%clk 0:02:18.1]} 14... Nf8 {[%clk 0:02:06.1]} 15. Ne4 {[%clk 0:02:15.1]} 15...
Rb8 {[%clk 0:02:01.1]} 16. Nd6 {[%clk 0:02:13.6]} 16... Rd8 {[%clk 0:02:01.5]}
17. Nxc8 {[%clk 0:02:13.4]} 17... Rbxc8 {[%clk 0:02:01.8]} 18. Nd2 {[%clk
0:02:11.2]} 18... Ne6 {[%clk 0:02:01.6]} 19. Ne4 {[%clk 0:02:08.3]} 19... Ne7
{[%clk 0:01:58]} 20. Nd6 {[%clk 0:01:59.2]} 20... Rb8 {[%clk 0:01:58]} 21. Rb1
{[%clk 0:01:59.1]} 21... Nc6 {[%clk 0:01:07.6]} 22. Qa4 {[%clk 0:01:51.1]} 22...
Bf8 {[%clk 0:00:56]} 23. Nxb7 {[%clk 0:01:43.2]} 23... Rxb7 {[%clk 0:00:42.2]}
24. Rxb7 {[%clk 0:01:39.6]} 24... Qxb7 {[%clk 0:00:43.1]} 25. Bxc6 {[%clk
0:01:11.4]} 25... Qc7 {[%clk 0:00:43.1]} 26. Rb1 {[%clk 0:01:02.4]} 26... Nxc5
{[%clk 0:00:43]} 27. Bxc5 {[%clk 0:00:59.2]} 27... Bxc5 {[%clk 0:00:43.9]} 28.
Rb7 {[%clk 0:00:56.1]} 28... Qd6 {[%clk 0:00:44.3]} 29. Bd5 {[%clk 0:00:56]}
29... Rf8 {[%clk 0:00:43.9]} 30. Qc6 {[%clk 0:00:40.9]} 30... Qxc6 {[%clk
0:00:33.4]} 31. Bxc6 {[%clk 0:00:41.1]} 31... f6 {[%clk 0:00:29.7]} 32. f4
{[%clk 0:00:36.2]} 32... Kh8 {[%clk 0:00:23.6]} 33. Kf2 {[%clk 0:00:29]} 33...
Rc8 {[%clk 0:00:19.9]} 34. Bd5 {[%clk 0:00:28.1]} 34... Re8 {[%clk 0:00:19.8]}
35. Rf7 {[%clk 0:00:21.4]} 35... Be7 {[%clk 0:00:16.4]} 36. Kf3 {[%clk
0:00:19.2]} 36... Bd8 {[%clk 0:00:14.8]} 37. fxe5 {[%clk 0:00:18.4]} 37... fxe5
{[%clk 0:00:15.2]} 38. Ke4 {[%clk 0:00:17.7]} 38... Bb6 {[%clk 0:00:15.1]} 39.
h4 {[%clk 0:00:13.2]} 39... Bc5 {[%clk 0:00:15]} 40. g4 {[%clk 0:00:11.8]} 40...
Re7 {[%clk 0:00:15.4]} 41. g5 {[%clk 0:00:05.9]} 41... Re8 {[%clk 0:00:13.2]}
42. Rf6 {[%clk 0:00:03]} 42... Kg7 {[%clk 0:00:12.3]} 43. Re6 {[%clk 0:00:03.2]}
43... Rxe6 {[%clk 0:00:09.4]} 44. Bxe6 {[%clk 0:00:02.9]} 44... Bd6 {[%clk
0:00:10.3]} 45. Kd5 {[%clk 0:00:03.2]} 45... Bb8 {[%clk 0:00:10.8]} 46. c5
{[%clk 0:00:03.6]} 46... Kf8 {[%clk 0:00:11.1]} 47. c6 {[%clk 0:00:02.9]} 47...
Ke7 {[%clk 0:00:11.6]} 48. Bd7 {[%clk 0:00:03.1]} 48... Bc7 {[%clk 0:00:12]} 49.
Be6 {[%clk 0:00:03.4]} 49... Bd6 {[%clk 0:00:12.4]} 50. Bg8 {[%clk 0:00:03.7]}
50... Bc7 {[%clk 0:00:06.8]} 51. Bxh7 {[%clk 0:00:03.4]} 51... Kf7 {[%clk
0:00:07.4]} 52. h5 {[%clk 0:00:03]} 52... gxh5 {[%clk 0:00:07.4]} 53. g6+ {[%clk
0:00:03.3]} 53... Kg7 {[%clk 0:00:07.6]} 54. Ke4 {[%clk 0:00:02.2]} 54... h4
{[%clk 0:00:07.9]} 55. Kf3 {[%clk 0:00:02.4]} 55... Bd8 {[%clk 0:00:06.7]} 56.
Kg4 {[%clk 0:00:01.8]} 56... Kh6 {[%clk 0:00:07.1]} 0-1

[Event "*** SCC Grand Prix: Titled Tuesday Blitz"]
[Site "Chess.com"]
[Date "2020.07.14"]
[Round "2"]
[White "FlamingPhoenix123"]
[Black "DenisQ"]
[Result "1/2-1/2"]
[WhiteElo "2421"]
[BlackElo "2646"]
[TimeControl "180+1"]
[EndTime "10:19:06 PDT"]
[Termination "Game drawn by agreement"]

1. e4 {[%clk 0:03:00.9]} 1... c6 {[%clk 0:02:58.9]} 2. d4 {[%clk 0:03:00.7]}
2... d5 {[%clk 0:02:58.4]} 3. Nc3 {[%clk 0:03:00.9]} 3... dxe4 {[%clk
0:02:58.2]} 4. Nxe4 {[%clk 0:03:01.8]} 4... Bf5 {[%clk 0:02:58.2]} 5. Ng3 {[%clk
0:03:02]} 5... Bg6 {[%clk 0:02:58.2]} 6. h4 {[%clk 0:03:02.2]} 6... h6 {[%clk
0:02:57.6]} 7. Nf3 {[%clk 0:03:02.5]} 7... Nf6 {[%clk 0:02:57.6]} 8. Ne5 {[%clk
0:03:00.6]} 8... Bh7 {[%clk 0:02:57.6]} 9. Bd3 {[%clk 0:03:00.5]} 9... Bxd3
{[%clk 0:02:57.1]} 10. Qxd3 {[%clk 0:03:01.4]} 10... e6 {[%clk 0:02:57.4]} 11.
Bd2 {[%clk 0:02:54.6]} 11... Nbd7 {[%clk 0:02:57.1]} 12. f4 {[%clk 0:02:54.3]}
12... Bd6 {[%clk 0:02:56.2]} 13. O-O-O {[%clk 0:02:53.3]} 13... O-O {[%clk
0:02:55.2]} 14. Ne4 {[%clk 0:02:46.8]} 14... Nxe4 {[%clk 0:02:54.8]} 15. Qxe4
{[%clk 0:02:47.7]} 15... f5 {[%clk 0:02:55]} 16. Qe2 {[%clk 0:02:44.1]} 16...
Nf6 {[%clk 0:02:53.2]} 17. Be3 {[%clk 0:02:27.8]} 17... Qa5 {[%clk 0:02:45.9]}
18. Kb1 {[%clk 0:02:20.6]} 18... Rad8 {[%clk 0:02:41.8]} 19. Bd2 {[%clk
0:01:42.8]} 19... Qd5 {[%clk 0:02:37.8]} 20. c3 {[%clk 0:01:41.2]} 20... c5
{[%clk 0:02:30.9]} 21. Bc1 {[%clk 0:01:41.2]} 21... Qe4+ {[%clk 0:02:25]} 22.
Qxe4 {[%clk 0:01:39.7]} 22... Nxe4 {[%clk 0:02:25.9]} 23. Be3 {[%clk 0:01:37.8]}
23... Bxe5 {[%clk 0:02:19.9]} 24. dxe5 {[%clk 0:01:35.7]} 24... b5 {[%clk
0:02:08.2]} 25. Kc2 {[%clk 0:01:35.2]} 25... Rd5 {[%clk 0:01:54.8]} 26. Rxd5
{[%clk 0:01:30.1]} 26... exd5 {[%clk 0:01:55.7]} 27. Rd1 {[%clk 0:01:29.9]}
27... Rd8 {[%clk 0:01:53.8]} 28. a4 {[%clk 0:01:29.8]} 28... bxa4 {[%clk
0:01:43.3]} 29. Ra1 {[%clk 0:01:20.9]} 29... d4 {[%clk 0:01:39.2]} 30. Rd1
{[%clk 0:00:57.4]} 30... Rc8 {[%clk 0:01:18]} 31. Bg1 {[%clk 0:00:57]} 31... a3
{[%clk 0:01:16.4]} 32. cxd4 {[%clk 0:00:51.7]} 32... cxd4+ {[%clk 0:01:14.8]}
33. Kb1 {[%clk 0:00:50.5]} 33... axb2 {[%clk 0:01:09.7]} 34. Bxd4 {[%clk
0:00:48.7]} 34... Rd8 {[%clk 0:00:28.7]} 35. Kxb2 {[%clk 0:00:47.3]} 35... Nc5
{[%clk 0:00:26.9]} 36. Kc2 {[%clk 0:00:25.2]} 36... Ne6 {[%clk 0:00:26.2]} 37.
Be3 {[%clk 0:00:18]} 37... Rxd1 {[%clk 0:00:25.2]} 38. Kxd1 {[%clk 0:00:18.9]}
38... Kf7 {[%clk 0:00:25.4]} 39. g3 {[%clk 0:00:18.2]} 39... a6 {[%clk
0:00:18.9]} 40. h5 {[%clk 0:00:18.3]} 40... Nc7 {[%clk 0:00:17.4]} 41. Kc2
{[%clk 0:00:17.5]} 41... Ne6 {[%clk 0:00:07.1]} 42. Kb3 {[%clk 0:00:16]} 42...
g6 {[%clk 0:00:07.3]} 43. hxg6+ {[%clk 0:00:16.2]} 43... Kxg6 {[%clk 0:00:08.2]}
44. Kc4 {[%clk 0:00:17.1]} 44... Kf7 {[%clk 0:00:07.8]} 45. Kd5 {[%clk
0:00:16.8]} 45... Ke7 {[%clk 0:00:07.9]} 46. Kc6 {[%clk 0:00:16.1]} 46... h5
{[%clk 0:00:08]} 47. Kb6 {[%clk 0:00:16.1]} 47... Nf8 {[%clk 0:00:06.4]} 48.
Kxa6 {[%clk 0:00:15.8]} 48... Ng6 {[%clk 0:00:06.1]} 49. Kb5 {[%clk 0:00:12.1]}
49... h4 {[%clk 0:00:06.1]} 50. gxh4 {[%clk 0:00:13]} 50... Nxh4 {[%clk
0:00:06.5]} 51. Kc6 {[%clk 0:00:13.2]} 51... Ke6 {[%clk 0:00:07]} 52. Kc5 {[%clk
0:00:12.4]} 52... Ng2 {[%clk 0:00:06.9]} 53. Kd4 {[%clk 0:00:12.3]} 53... Nh4
{[%clk 0:00:06.7]} 54. Kd3 {[%clk 0:00:12.1]} 54... Ng6 {[%clk 0:00:07.6]} 55.
Ke2 {[%clk 0:00:12.1]} 55... Ne7 {[%clk 0:00:08.1]} 56. Kf3 {[%clk 0:00:12.1]}
56... Nd5 {[%clk 0:00:09]} 57. Bd4 {[%clk 0:00:12.3]} 57... Ne7 {[%clk 0:00:09]}
58. Ba1 {[%clk 0:00:12.1]} 58... Nd5 {[%clk 0:00:09.9]} 59. Bb2 {[%clk
0:00:12.1]} 59... Ne7 {[%clk 0:00:10.4]} 60. Bd4 {[%clk 0:00:12.1]} 60... Nd5
{[%clk 0:00:10.8]} 61. Ba1 {[%clk 0:00:12.5]} 61... Ne7 {[%clk 0:00:10.7]} 62.
Bd4 {[%clk 0:00:12.1]} 62... Nd5 {[%clk 0:00:10.9]} 63. Bc5 {[%clk 0:00:11.8]}
63... Nc3 {[%clk 0:00:10]} 1/2-1/2

[Event "*** SCC Grand Prix: Titled Tuesday Blitz"]
[Site "Chess.com"]
[Date "2020.07.14"]
[Round "2"]
[White "marianokar"]
[Black "pavelalexandru07"]
[Result "1-0"]
[WhiteElo "2408"]
[BlackElo "2136"]
[TimeControl "180+1"]
[EndTime "10:19:06 PDT"]
[Termination "marianokar won by resignation"]

1. e4 {[%clk 0:03:00.9]} 1... c5 {[%clk 0:02:53.5]} 2. Nf3 {[%clk 0:02:56.9]}
2... d6 {[%clk 0:02:53.6]} 3. Bb5+ {[%clk 0:02:54.3]} 3... Nd7 {[%clk
0:02:49.2]} 4. O-O {[%clk 0:02:53.6]} 4... a6 {[%clk 0:02:45.7]} 5. Bd3 {[%clk
0:02:49.5]} 5... Ngf6 {[%clk 0:02:44.6]} 6. Re1 {[%clk 0:02:47.2]} 6... b5
{[%clk 0:02:44.5]} 7. c3 {[%clk 0:02:47.2]} 7... c4 {[%clk 0:02:42.4]} 8. Bc2
{[%clk 0:02:46.8]} 8... Bb7 {[%clk 0:02:39.8]} 9. a4 {[%clk 0:02:22.5]} 9... e6
{[%clk 0:02:38.3]} 10. d3 {[%clk 0:02:11.9]} 10... cxd3 {[%clk 0:02:36.9]} 11.
Bxd3 {[%clk 0:02:12.4]} 11... bxa4 {[%clk 0:02:10.2]} 12. Qxa4 {[%clk
0:01:58.3]} 12... Be7 {[%clk 0:01:54.8]} 13. e5 {[%clk 0:01:33.8]} 13... dxe5
{[%clk 0:01:52.8]} 14. Nxe5 {[%clk 0:01:33.6]} 14... O-O {[%clk 0:01:52.6]} 15.
Nc6 {[%clk 0:01:29.7]} 15... Qe8 {[%clk 0:01:00.6]} 16. Nxe7+ {[%clk 0:01:11.6]}
16... Qxe7 {[%clk 0:01:00.4]} 17. Qh4 {[%clk 0:01:09]} 17... Qd6 {[%clk
0:00:37.1]} 18. Bc2 {[%clk 0:01:05.7]} 18... Qd5 {[%clk 0:00:34]} 19. f3 {[%clk
0:01:03.9]} 19... Rac8 {[%clk 0:00:24.9]} 20. Rd1 {[%clk 0:00:58.6]} 20... Qc5+
{[%clk 0:00:21.4]} 21. Qf2 {[%clk 0:00:59.1]} 21... Qxf2+ {[%clk 0:00:20.8]} 22.
Kxf2 {[%clk 0:01:00]} 22... Nc5 {[%clk 0:00:20.5]} 23. Be3 {[%clk 0:00:51.6]}
23... Ncd7 {[%clk 0:00:14.2]} 24. Kf1 {[%clk 0:00:18.8]} 24... Rfd8 {[%clk
0:00:12.8]} 25. Nd2 {[%clk 0:00:16.9]} 25... Ne5 {[%clk 0:00:12.5]} 26. Nb3
{[%clk 0:00:15.4]} 26... Nc4 {[%clk 0:00:12.4]} 27. Rxd8+ {[%clk 0:00:15.1]}
27... Rxd8 {[%clk 0:00:12.6]} 28. Bc1 {[%clk 0:00:14.8]} 28... Nd5 {[%clk
0:00:03.8]} 29. Ke2 {[%clk 0:00:14.9]} 29... Rc8 {[%clk 0:00:03.4]} 30. Na5
{[%clk 0:00:14.9]} 30... Nxa5 {[%clk 0:00:03]} 31. Rxa5 {[%clk 0:00:14.2]} 31...
Nb6 {[%clk 0:00:02.9]} 32. Bd3 {[%clk 0:00:13.4]} 32... Nd5 {[%clk 0:00:02.8]}
33. Bd2 {[%clk 0:00:13.1]} 33... Rc6 {[%clk 0:00:02.5]} 34. b4 {[%clk
0:00:13.1]} 34... Rb6 {[%clk 0:00:02.7]} 35. Ra4 {[%clk 0:00:12.2]} 35... g6
{[%clk 0:00:02.4]} 36. c4 {[%clk 0:00:11.4]} 36... Ne7 {[%clk 0:00:01.5]} 37.
Be3 {[%clk 0:00:10.2]} 37... Rc6 {[%clk 0:00:01.6]} 38. b5 {[%clk 0:00:09.6]}
38... axb5 {[%clk 0:00:02]} 39. cxb5 {[%clk 0:00:10.5]} 39... Rc7 {[%clk
0:00:02.4]} 40. Ra7 {[%clk 0:00:08.7]} 40... Nd5 {[%clk 0:00:02.6]} 41. b6
{[%clk 0:00:06.8]} 41... Rd7 {[%clk 0:00:02.9]} 42. g3 {[%clk 0:00:04.6]} 42...
Nxe3 {[%clk 0:00:03.1]} 43. Kxe3 {[%clk 0:00:05.5]} 43... Kf8 {[%clk 0:00:03.5]}
44. Bb5 {[%clk 0:00:05.2]} 44... Re7 {[%clk 0:00:03.2]} 45. f4 {[%clk
0:00:04.9]} 45... f6 {[%clk 0:00:02.3]} 46. Kd4 {[%clk 0:00:04.8]} 46... Kf7
{[%clk 0:00:02.8]} 47. Kc5 {[%clk 0:00:04]} 47... e5 {[%clk 0:00:03.3]} 48. Bc4+
{[%clk 0:00:04.5]} 48... Kg7 {[%clk 0:00:03.2]} 49. Kd6 {[%clk 0:00:04.1]} 49...
e4 {[%clk 0:00:03.5]} 50. Kxe7 {[%clk 0:00:03.7]} 50... e3 {[%clk 0:00:04]} 51.
Rxb7 {[%clk 0:00:03.8]} 51... e2 {[%clk 0:00:04.5]} 52. Bxe2 {[%clk 0:00:04.7]}
1-0